[Event "89th GER-ch"]
[Site "Dresden"]
[Date "2018.08.10"]
[Round "8.2"]
[White "Colpe, Malte"]
[Black "Poetsch, Hagen"]
[Result "0-1"]
[ECO "B90"]
[WhiteElo "2384"]
[BlackElo "2513"]
[Annotator "ChessBase"]
[PlyCount "102"]
[EventDate "2018.08.03"]
[EventType "swiss"]
[EventCountry "GER"]
[SourceTitle "playchess.com"]
[Source "ChessBase"]
[SourceQuality "1"]
[TimeControl "40/5400+30:1800+30"]

1. e4 {[%emt 1:30:28]} c5 {[%emt 1:30:11]} 2. Nf3 {[%emt 1:30:51]} d6 {[%emt 1:30:11]} 3. d4 {[%emt 1:31:12]} cxd4 {[%emt 1:30:35]} 4. Nxd4 {[%emt 1:31:37]} Nf6 {[%emt 1:30:59]} 5. Nc3 {[%emt 1:32:02]} a6 {[%emt 1:31:22]} 6. h4 {[%emt 1:32:16]} g6 {[%emt 1:27:39]} 7. h5 {[%emt 1:32:20]} gxh5 {[%emt 1:18:54]} 8. Bg5 {[%emt 1:27:22]} Nbd7 {[%emt 1:17:35]} 9. Qd2 {[%emt 1:25:22]} h6 {[%emt 1:14:50]} 10. Bh4 {[%emt 1:24:50]} b5 {[%emt 1:10:41]} 11. Nd5 {[%emt 1:02:22]} Nxd5 {[%emt 1:10:00]} 12. exd5 {[%emt 1:02:43]} Ne5 {[%emt 0:59:07]} 13. Be2 {[%emt 0:55:40]} Bg4 {[%emt 0:56:46]} 14. O-O-O {[%emt 0:53:08]} Qc7 {[%emt 0:46:04]} 15. Rhe1 {[%emt 0:45:31]} Rg8 {[%emt 0:40:36]} 16. f4 {[%emt 0:32:50]} Nc4 {[%emt 0:39:50]} 17. Bxc4 {[%emt 0:30:49]} Qxc4 {[%emt 0:30:06]} 18. Qe3 {[%emt 0:03:41]} Bxd1 {[%emt 0:29:37]} 19. Bxe7 {[%emt 0:03:52]} Bxc2 {[%emt 0:08:35]} 20. Nxc2 {[%emt 0:02:38]} Rxg2 {[%emt 0:08:30]} 21. Bg5+ {[%emt 0:01:09]} Kd7 {[%emt 0:08:44]} 22. Qh3+ {[%emt 0:01:34]} Rg4 {[%emt 0:06:14]} 23. Qxh5 {[%emt 0:01:57]} Rxf4 {[%emt 0:06:36]} 24. Qh3+ {[%emt 0:00:51]} Rg4 {[%emt 0:04:39]} 25. b3 {[%emt 0:01:06]} Qxd5 {[%emt 0:04:26]} 26. Qxg4+ {[%emt 0:01:29]} f5 {[%emt 0:04:41]} 27. Qh5 {[%emt 0:01:07]} hxg5 {[%emt 0:03:44]} 28. Qh7+ {[%emt 0:01:07]} Kd8 {[%emt 0:04:10]} 29. Rd1 {[%emt 0:00:27]} Qe4 {[%emt 0:00:57]} 30. Qf7 {[%emt 0:00:23]} Qe7 {[%emt 0:00:37]} 31. Qxf5 {[%emt 0:00:41]} Rc8 {[%emt 0:00:48]} 32. Kb1 {[%emt 0:00:50]} Bg7 {[%emt 0:00:39]} 33. Qg6 {[%emt 0:00:25]} Be5 {[%emt 0:00:09]} 34. Nb4 {[%emt 0:00:37]} Qf6 {[%emt 0:00:03]} 35. Qxf6+ {[%emt 0:00:27]} Bxf6 {[%emt 0:00:29]} 36. Rxd6+ {[%emt 0:00:51]} Ke7 {[%emt 0:00:55]} 37. Rxa6 {[%emt 0:01:13]} Rc5 {[%emt 0:00:54]} 38. Nd3 {[%emt 0:00:24]} Rf5 {[%emt 0:01:07]} 39. Ra7+ {[%emt 0:00:28]} Ke6 {[%emt 0:00:44]} 40. Kc2 {[%emt 0:00:11]} g4 {[%emt 0:00:44]} 41. Rh7 {[%emt 0:24:44]} g3 {[%emt 0:22:05]} 42. Rh1 {[%emt 0:24:19]} Bd4 {[%emt 0:20:42]} 43. Re1+ {[%emt 0:15:01]} Kf6 {[%emt 0:15:12]} 44. Re2 {[%emt 0:14:44]} Bf2 {[%emt 0:13:07]} 45. Ne1 {[%emt 0:14:43]} Kg5 {[%emt 0:13:02]} 46. Kd3 {[%emt 0:12:50]} Kg4 {[%emt 0:12:51]} 47. Ke4 {[%emt 0:06:44]} Rf4+ {[%emt 0:10:37]} 48. Ke5 {[%emt 0:05:59]} Rf8 {[%emt 0:10:42]} 49. Kd5 {[%emt 0:05:42]} Rd8+ {[%emt 0:10:24]} 50. Kc6 {[%emt 0:05:46]} Rd1 {[%emt 0:10:09]} 51. Nc2 {[%emt 0:03:56]} Kf3 {[%emt 0:09:46]} 0-1

[Event "89th GER-ch"]
[Site "Dresden"]
[Date "2018.08.10"]
[Round "8.3"]
[White "Gschnitzer, Adrian"]
[Black "Armbrust, Florian"]
[Result "0-1"]
[ECO "B65"]
[WhiteElo "2333"]
[BlackElo "2300"]
[Annotator "NA"]
[PlyCount "98"]
[EventDate "2018.08.03"]
[EventType "swiss"]
[EventCountry "GER"]
[SourceTitle "playchess.com"]
[Source "ChessBase"]
[SourceQuality "1"]
[TimeControl "40/5400+30:1800+30"]

1. e4 {[%emt 1:30:27]} c5 {[%emt 1:30:27]} 2. Nf3 {[%emt 1:30:49]} d6 {[%emt 1:30:55]} 3. d4 {[%emt 1:31:09]} cxd4 {[%emt 1:31:23]} 4. Nxd4 {[%emt 1:31:30]} Nf6 {[%emt 1:31:49]} 5. Nc3 {[%emt 1:31:51]} Nc6 {[%emt 1:32:17]} 6. Bg5 {[%emt 1:31:51]} e6 {[%emt 1:32:44]} 7. Qd2 {[%emt 1:32:09]} Be7 {[%emt 1:33:11]} 8. O-O-O {[%emt 1:32:23]} Nxd4 {[%emt 1:33:38]} 9. Qxd4 {[%emt 1:32:40]} O-O {[%emt 1:34:00]} 10. f4 {[%emt 1:33:00]} Qa5 {[%emt 1:34:27]} 11. e5 {[%emt 1:33:02]} dxe5 {[%emt 1:34:27]} 12. Qxe5 {[%emt 1:33:21]} Qxe5 {[%emt 1:34:35]} 13. fxe5 {[%emt 1:33:42]} Nd5 {[%emt 1:34:59]} 14. Bxe7 {[%emt 1:34:01]} Nxe7 {[%emt 1:35:25]} 15. Bd3 {[%emt 1:34:16]} b6 16. Be4 {[%emt 1:34:38]} Rb8 {[%emt 1:36:14]} 17. Rhe1 {[%emt 1:34:50]} Bb7 {[%emt 1:36:38]} 18. Rd7 {[%emt 1:31:18]} Bxe4 {[%emt 1:36:38]} 19. Rxe4 {[%emt 1:31:37]} Nc6 {[%emt 1:35:41]} 20. Nb5 {[%emt 1:31:20]} Rbd8 {[%emt 1:07:18]} 21. Rd6 {[%emt 1:28:32]} Rxd6 {[%emt 1:06:04]} 22. exd6 {[%emt 1:28:32]} a6 {[%emt 1:01:40]} 23. Nc7 {[%emt 1:28:10]} Rd8 {[%emt 0:56:53]} 24. Ra4 {[%emt 1:20:44]} a5 {[%emt 0:56:28]} 25. Nb5 {[%emt 1:19:35]} Ne5 {[%emt 0:50:01]} 26. a3 {[%emt 1:01:34]} Kf8 {[%emt 0:43:38]} 27. Rh4 {[%emt 0:53:28]} h6 {[%emt 0:42:43]} 28. Kd2 {[%emt 0:44:59]} f5 {[%emt 0:39:06]} 29. b4 {[%emt 0:31:04]} axb4 {[%emt 0:34:58]} 30. axb4 {[%emt 0:31:12]} Ke8 {[%emt 0:34:36]} 31. c4 {[%emt 0:27:23]} Kd7 {[%emt 0:34:01]} 32. Kc3 {[%emt 0:26:18]} Rc8 {[%emt 0:26:59]} 33. Rd4 {[%emt 0:23:55]} Rc6 {[%emt 0:24:21]} 34. Rh4 {[%emt 0:11:20]} Ng4 {[%emt 0:19:36]} 35. h3 {[%emt 0:05:04]} Ne3 {[%emt 0:16:10]} 36. g3 {[%emt 0:04:06]} Nd5+ {[%emt 0:08:08]} 37. Kb3 {[%emt 0:02:47]} Nf6 {[%emt 0:08:24]} 38. Rd4 {[%emt 0:02:15]} Ne4 {[%emt 0:05:16]} 39. Rd1 {[%emt 0:00:50]} g5 {[%emt 0:04:49]} 40. Ra1 {[%emt 0:00:09]} Nxd6 {[%emt 0:00:56]} 41. Ra7+ {[%emt 0:28:47]} Ke8 {[%emt 0:27:26]} 42. Nc7+ {[%emt 0:24:20]} Kd7 {[%emt 0:20:28]} 43. Nd5+ {[%emt 0:20:42]} Kd8 {[%emt 0:18:07]} 44. Ra8+ {[%emt 0:11:35]} Rc8 {[%emt 0:17:04]} 45. Nxb6 {[%emt 0:11:59]} Rxa8 {[%emt 0:17:26]} 46. Nxa8 {[%emt 0:12:24]} f4 {[%emt 0:17:34]} 47. gxf4 {[%emt 0:12:44]} gxf4 {[%emt 0:17:59]} 48. Kc3 {[%emt 0:12:35]} f3 {[%emt 0:18:21]} 49. Kd3 {[%emt 0:11:39]} Nxc4 {[%emt 0:18:35]} 0-1

[Event "89th GER-ch"]
[Site "Dresden"]
[Date "2018.08.11"]
[Round "9.2"]
[White "Poetsch, Hagen"]
[Black "Gungl, Theo"]
[Result "0-1"]
[ECO "B90"]
[WhiteElo "2513"]
[BlackElo "2283"]
[Annotator "ChessBase"]
[PlyCount "80"]
[EventDate "2018.08.03"]
[EventType "swiss"]
[EventCountry "GER"]
[SourceTitle "playchess.com"]
[Source "ChessBase"]
[SourceQuality "1"]
[TimeControl "40/5400+30:1800+30"]

1. e4 c5 {[%emt 1:30:26]} 2. Nf3 {[%emt 1:30:52]} d6 {[%emt 1:30:54]} 3. d4 {[%emt 1:31:16]} cxd4 {[%emt 1:31:22]} 4. Nxd4 {[%emt 1:31:40]} Nf6 {[%emt 1:31:46]} 5. Nc3 {[%emt 1:32:07]} a6 {[%emt 1:32:10]} 6. Nb3 {[%emt 1:32:19]} e6 {[%emt 1:30:32]} 7. g4 {[%emt 1:32:43]} b5 {[%emt 1:26:42]} 8. Bg2 {[%emt 1:32:52]} Bb7 {[%emt 1:27:08]} 9. g5 {[%emt 1:33:06]} Nfd7 {[%emt 1:27:05]} 10. a3 {[%emt 1:32:51]} Nc6 {[%emt 1:22:28]} 11. O-O {[%emt 1:31:47]} Be7 {[%emt 1:13:43]} 12. f4 {[%emt 1:32:00]} O-O {[%emt 1:09:01]} 13. Be3 {[%emt 1:22:39]} Nb6 {[%emt 1:08:02]} 14. Nd2 {[%emt 1:20:17]} Na5 {[%emt 1:05:19]} 15. Qe2 {[%emt 1:07:43]} Nac4 {[%emt 1:02:30]} 16. Nxc4 {[%emt 1:08:07]} Nxc4 {[%emt 1:02:54]} 17. Bc1 {[%emt 1:06:04]} Rc8 {[%emt 0:51:40]} 18. Kh1 {[%emt 1:00:19]} e5 {[%emt 0:41:19]} 19. h4 {[%emt 0:48:03]} exf4 {[%emt 0:31:06]} 20. Bxf4 {[%emt 0:46:58]} Nxb2 {[%emt 0:23:34]} 21. Nd5 {[%emt 0:44:24]} Nc4 {[%emt 0:23:31]} 22. a4 {[%emt 0:41:03]} Bc6 {[%emt 0:18:18]} 23. Qg4 {[%emt 0:30:25]} Bd7 {[%emt 0:14:50]} 24. Qg3 {[%emt 0:28:54]} bxa4 {[%emt 0:06:52]} 25. h5 {[%emt 0:25:21]} Bc6 {[%emt 0:06:14]} 26. Bh3 {[%emt 0:08:25]} Bxd5 {[%emt 0:06:15]} 27. exd5 {[%emt 0:08:50]} Rc5 {[%emt 0:06:38]} 28. Rxa4 {[%emt 0:08:50]} Nb6 {[%emt 0:05:51]} 29. Rxa6 {[%emt 0:09:08]} Nxd5 {[%emt 0:06:17]} 30. Bd2 {[%emt 0:05:47]} Nc7 {[%emt 0:05:52]} 31. Ra4 {[%emt 0:02:20]} Bxg5 {[%emt 0:05:44]} 32. Rg1 {[%emt 0:02:13]} h6 {[%emt 0:05:44]} 33. Rd4 {[%emt 0:02:01]} Ne6 {[%emt 0:03:52]} 34. Rxd6 {[%emt 0:01:27]} Qa8+ {[%emt 0:03:52]} 35. Bg2 {[%emt 0:01:11]} Qb8 {[%emt 0:04:02]} 36. Bf3 {[%emt 0:00:23]} Rxc2 {[%emt 0:03:33]} 37. Bxg5 {[%emt 0:00:08]} Nxg5 {[%emt 0:03:56]} 38. Bd5 {[%emt 0:00:09]} Qb2 {[%emt 0:03:24]} 39. Rd7 {[%emt 0:00:03]} Rc3 {[%emt 0:03:22]} 40. Rxf7 {[%emt 0:00:01]} Rxf7 {[%emt 0:03:24]} 0-1

[Event "89th GER-ch"]
[Site "Dresden"]
[Date "2018.08.11"]
[Round "9.3"]
[White "Miller, Eduard"]
[Black "Langrock, Hannes"]
[Result "1-0"]
[ECO "A05"]
[WhiteElo "2309"]
[BlackElo "2370"]
[Annotator "NA"]
[PlyCount "125"]
[EventDate "2018.08.03"]
[EventType "swiss"]
[EventCountry "GER"]
[SourceTitle "playchess.com"]
[Source "ChessBase"]
[SourceQuality "1"]
[TimeControl "40/5400+30:1800+30"]

1. Nf3 e6 {[%emt 1:30:11]} 2. g3 {[%emt 1:30:50]} b6 {[%emt 1:30:28]} 3. Bg2 {[%emt 1:31:11]} Bb7 {[%emt 1:30:51]} 4. O-O {[%emt 1:31:35]} c5 {[%emt 1:30:51]} 5. d3 {[%emt 1:31:54]} Nf6 {[%emt 1:30:58]} 6. e4 {[%emt 1:30:51]} d6 {[%emt 1:31:16]} 7. Re1 {[%emt 1:30:47]} Be7 {[%emt 1:31:20]} 8. Nbd2 {[%emt 1:31:02]} O-O {[%emt 1:31:13]} 9. c3 {[%emt 1:31:28]} Nc6 {[%emt 1:30:27]} 10. a3 {[%emt 1:31:45]} Ne5 {[%emt 1:27:17]} 11. Nxe5 {[%emt 1:22:58]} dxe5 {[%emt 1:27:40]} 12. Nc4 {[%emt 1:23:18]} Nd7 {[%emt 1:25:13]} 13. a4 {[%emt 0:43:46]} a6 {[%emt 1:23:29]} 14. f4 {[%emt 0:40:26]} exf4 {[%emt 1:17:53]} 15. Bxf4 {[%emt 0:40:05]} b5 {[%emt 1:17:29]} 16. Nd2 {[%emt 0:35:39]} Bc6 {[%emt 0:56:07]} 17. Qe2 {[%emt 0:33:36]} Nb6 {[%emt 0:35:00]} 18. a5 {[%emt 0:33:11]} Nd7 {[%emt 0:35:06]} 19. Nb3 {[%emt 0:22:41]} Bg5 {[%emt 0:30:09]} 20. Qe3 {[%emt 0:10:53]} Bxf4 {[%emt 0:29:33]} 21. gxf4 {[%emt 0:11:18]} Qe7 {[%emt 0:27:54]} 22. d4 {[%emt 0:11:25]} cxd4 {[%emt 0:27:32]} 23. cxd4 {[%emt 0:11:36]} Bb7 {[%emt 0:26:01]} 24. d5 {[%emt 0:06:14]} Rac8 {[%emt 0:12:05]} 25. Rad1 {[%emt 0:03:50]} e5 {[%emt 0:06:42]} 26. Bh3 {[%emt 0:03:33]} exf4 {[%emt 0:06:46]} 27. Qxf4 {[%emt 0:03:51]} Rc4 {[%emt 0:06:38]} 28. Nd2 {[%emt 0:02:31]} Rc2 {[%emt 0:05:59]} 29. Nf3 {[%emt 0:02:37]} Nc5 {[%emt 0:02:08]} 30. b4 {[%emt 0:01:47]} Na4 {[%emt 0:02:08]} 31. d6 {[%emt 0:01:30]} Qd8 {[%emt 0:02:20]} 32. Rc1 {[%emt 0:01:38]} Rc3 {[%emt 0:01:59]} 33. Bg4 {[%emt 0:00:50]} Bc8 {[%emt 0:01:16]} 34. e5 {[%emt 0:00:29]} Bd7 {[%emt 0:00:55]} 35. Qd4 {[%emt 0:00:23]} Bxg4 {[%emt 0:00:56]} 36. Rxc3 {[%emt 0:00:19]} Nxc3 {[%emt 0:01:18]} 37. Qxg4 {[%emt 0:00:44]} Qa8 {[%emt 0:00:36]} 38. Re3 {[%emt 0:00:35]} Qc6 {[%emt 0:00:12]} 39. Qd4 {[%emt 0:00:46]} Ne2+ {[%emt 0:00:13]} 40. Rxe2 {[%emt 0:01:09]} Qxf3 {[%emt 0:00:41]} 41. Re3 {[%emt 0:19:49]} Qf5 {[%emt 0:26:42]} 42. d7 {[%emt 0:19:27]} Rd8 {[%emt 0:24:24]} 43. Rd3 {[%emt 0:19:44]} h5 {[%emt 0:22:53]} 44. h4 {[%emt 0:17:43]} Kh7 {[%emt 0:16:43]} 45. Kg2 {[%emt 0:17:42]} Qg6+ {[%emt 0:12:57]} 46. Kf2 {[%emt 0:17:34]} Qf5+ {[%emt 0:13:06]} 47. Ke1 {[%emt 0:16:28]} g6 {[%emt 0:03:25]} 48. Kd2 {[%emt 0:16:44]} g5 {[%emt 0:02:19]} 49. hxg5 {[%emt 0:15:52]} Qxg5+ {[%emt 0:02:45]} 50. Kc2 {[%emt 0:15:58]} Qg4 {[%emt 0:01:38]} 51. Qd6 {[%emt 0:08:10]} Qg5 {[%emt 0:00:42]} 52. Kb2 {[%emt 0:08:04]} h4 {[%emt 0:01:03]} 53. Qd5 {[%emt 0:06:58]} Kg7 {[%emt 0:00:22]} 54. Rf3 {[%emt 0:06:04]} Qg2+ {[%emt 0:00:32]} 55. Ka3 {[%emt 0:06:24]} Qg6 {[%emt 0:00:45]} 56. Qd4 {[%emt 0:05:47]} Kf8 {[%emt 0:00:28]} 57. Qc5+ {[%emt 0:03:43]} Kg7 {[%emt 0:00:51]} 58. Qe7 {[%emt 0:03:51]} Qh5 {[%emt 0:00:05]} 59. Qf6+ {[%emt 0:03:55]} Kh7 {[%emt 0:00:31]} 60. Qxf7+ {[%emt 0:03:46]} Qxf7 {[%emt 0:00:58]} 61. Rxf7+ {[%emt 0:04:06]} Kg6 {[%emt 0:01:21]} 62. e6 {[%emt 0:04:30]} h3 {[%emt 0:01:13]} 63. Rf2 {[%emt 0:04:50]} 1-0

[Event "89th GER-ch"]
[Site "Dresden"]
[Date "2018.08.11"]
[Round "9.4"]
[White "Mueller, Nick"]
[Black "Armbrust, Florian"]
[Result "1/2-1/2"]
[ECO "E92"]
[WhiteElo "2313"]
[BlackElo "2300"]
[Annotator "NA"]
[PlyCount "67"]
[EventDate "2018.08.03"]
[EventType "swiss"]
[EventCountry "GER"]
[SourceTitle "playchess.com"]
[Source "ChessBase"]
[SourceQuality "1"]
[TimeControl "40/5400+30:1800+30"]

1. d4 {[%emt 1:30:28]} Nf6 {[%emt 1:30:25]} 2. c4 {[%emt 1:30:52]} g6 {[%emt 1:30:51]} 3. Nc3 {[%emt 1:31:14]} Bg7 {[%emt 1:31:17]} 4. e4 {[%emt 1:31:32]} d6 {[%emt 1:31:42]} 5. Nf3 {[%emt 1:31:50]} O-O {[%emt 1:32:05]} 6. Be2 {[%emt 1:32:15]} e5 {[%emt 1:32:30]} 7. Be3 {[%emt 1:32:35]} exd4 8. Nxd4 Re8 9. f3 c6 10. Bf2 d5 11. exd5 cxd5 12. O-O Nc6 13. c5 Nxd4 14. Bxd4 Be6 15. Qd2 Nd7 16. Rfd1 Ne5 17. Rac1 Qh4 18. Bf2 Qb4 19. Nxd5 Qxd2 20. Rxd2 Rad8 21. Rcd1 Rxd5 22. Rxd5 Bxd5 23. Rxd5 Nc6 24. Bb5 Bxb2 25. Rd7 a6 26. Ba4 Rb8 27. f4 Nd8 28. g4 Rc8 29. Bb3 Bf6 30. Bd5 Kf8 31. Bb3 Be7 32. f5 Rc6 33. Bd4 Ke8 34. Rd5 {Rh6 Kg2 Nc6 Be3 Rh4 Kg3 Re4 Kf3 Rh4 Kg3} 1/2-1/2